lending/lending_fUSD_20240731
["ID","MTS","AMOUNT","RATE_DAILY","PERIOD"]
[333730811,1722419997953,-500.0,0.00043835,120]
[333730812,1722419997991,-500.0,0.00043835,120]
[333730813,1722419998029,-603.92,0.00043835,120]
[333730814,1722419998068,-1368.46,0.00043835,120]
[333730815,1722419998106,-500.0,0.00043835,120]
[333730816,1722419998145,-500.0,0.00043835,120]
[333730817,1722419998183,-500.0,0.00043835,120]
[333730818,1722419998223,-500.0,0.00043835,120]
[333730819,1722419998262,-945.92,0.00043835,120]
[333730820,1722419998303,-500.0,0.00043835,120]
[333730821,1722419998341,-500.0,0.00043835,120]
[333730822,1722419998381,-500.0,0.00043835,120]
[333730823,1722419998421,-500.0,0.00043835,120]
[333730824,1722419998463,-500.0,0.00043835,120]
[333730825,1722419998502,-5050.18,0.00043835,120]
[333730826,1722419998541,-500.0,0.00043835,120]
[333730827,1722419998579,-500.0,0.00043835,120]
[333730828,1722419998619,-1924.27,0.00043835,120]
[333730829,1722419998658,-1031.31,0.00043835,120]
[333730830,1722419998697,-500.0,0.00043835,120]
[333730831,1722419998736,-500.0,0.00043835,120]
[333730832,1722419998773,-500.0,0.00043835,120]
[333730833,1722419998812,-500.0,0.00043835,120]
[333730834,1722419998851,-1937.03,0.00043835,120]
[333730835,1722419998890,-2244.66,0.00043835,120]
[333730836,1722419998928,-4268.74,0.00043835,120]
[333730837,1722419998966,-500.0,0.00043835,120]
[333730838,1722419999004,-4044.37,0.00043835,120]
[333730839,1722419999041,-502.38949154,0.00043835,120]
[333730840,1722419999077,-500.0,0.00043835,120]
[333730841,1722419999113,-5000.0,0.00043835,120]
[333730842,1722419999150,-500.0,0.00043835,120]
[333730843,1722419999188,-500.0,0.00043835,120]
[333730844,1722419999230,-2336.49,0.00043835,120]
[333730845,1722419999268,-1305.55,0.00043835,120]
[333730846,1722419999308,-500.0,0.00043835,120]
[333730847,1722419999349,-1562.5,0.00043835,120]
[333730848,1722419999387,-500.0,0.00043835,120]
[333730849,1722419999431,-1408.91,0.00043835,120]
[333730850,1722419999472,-500.0,0.00043835,120]
[333730851,1722419999509,-906.09,0.00043835,120]
[333730852,1722419999545,-661.62,0.00043835,120]
[333730853,1722419999584,-1790.16,0.00043835,120]
[333730854,1722419999622,-3066.58,0.00043835,120]
[333730855,1722419999659,-500.0,0.00043835,120]
[333730856,1722419999695,-652.35,0.00043835,120]
[333730857,1722419999732,-16922.22,0.00043835,120]
[333730858,1722419999768,-500.0,0.00043835,120]
[333730859,1722419999804,-500.0,0.00043835,120]
[333730860,1722419999841,-500.0,0.00043835,120]
[333730861,1722420000088,-820.34,0.00043835,120]
[333730862,1722420000127,-500.0,0.00043835,120]
[333730863,1722420000166,-500.0,0.00043835,120]
[333730864,1722420000206,-3884.85,0.00043835,120]
[333730865,1722420000245,-2273.98,0.00043835,120]
[333730866,1722420000285,-500.0,0.00043835,120]
[333730867,1722420000326,-500.0,0.00043835,120]
[333730868,1722420000367,-507.85784711,0.00043835,120]
[333730869,1722420000409,-1104.41,0.00043835,120]
[333730870,1722420000450,-500.0,0.00043835,120]
[333730871,1722420000492,-3000.0,0.00043835,120]
[333730872,1722420000536,-2116.31,0.00043835,120]
[333730873,1722420000576,-2336.48,0.00043835,120]
[333730874,1722420000617,-2901.77,0.00043835,120]
[333730875,1722420000657,-4550.58,0.00043835,120]
[333730876,1722420000696,-500.0,0.00043835,120]
[333730877,1722420000734,-500.0,0.00043835,120]
[333730878,1722420000774,-1085.68,0.00043835,120]
[333730879,1722420000813,-500.0,0.00043835,120]
[333730880,1722420000852,-505.99252414,0.00043835,120]
[333730881,1722420000892,-500.0,0.00043835,120]
[333730882,1722420000929,-1458.49,0.00043835,120]
[333730883,1722420000966,-500.0,0.00043835,120]
[333730884,1722420001005,-5969.69,0.00043835,120]
[333730885,1722420001043,-500.0,0.00043835,120]
[333730886,1722420001081,-2839.94,0.00043835,120]
[333730887,1722420001118,-500.0,0.00043835,120]
[333730888,1722420001157,-497.34557327,0.00043835,120]
[333730889,1722420001196,-1521.0,0.00043835,120]
[333730890,1722420001234,-500.0,0.00043835,120]
[333730891,1722420001272,-500.0,0.00043835,120]
[333730892,1722420001311,-300.0,0.00043835,120]
[333730893,1722420001350,-500.0,0.00043835,120]
[333730894,1722420001389,-4149.94,0.00043835,120]
[333730895,1722420001429,-500.0,0.00043835,120]
[333730896,1722420001470,-2032.02,0.00043835,120]
[333730897,1722420001507,-500.0,0.00043835,120]
[333730898,1722420001545,-500.0,0.00043835,120]
[333730899,1722420001584,-500.0,0.00043835,120]
[333730900,1722420001624,-1686.95,0.00043835,120]
[333730901,1722420001665,-5211.63,0.00043835,120]
[333730902,1722420001706,-891.06,0.00043835,120]
[333730903,1722420001746,-4099.57,0.00043835,120]
[333730904,1722420001787,-311.95531652,0.00043835,120]
[333730905,1722420001832,-500.0,0.00043835,120]
[333730906,1722420001874,-869.95,0.00043835,120]
[333730907,1722420001917,-1854.66,0.00043835,120]
[333730908,1722420001959,-1032.74,0.00043835,120]
[333730909,1722420002001,-612.64,0.00043835,120]
[333730910,1722420002042,-500.0,0.00043835,120]
[333730911,1722420002082,-2829.05,0.00043835,120]
[333730912,1722420002124,-500.0,0.00043835,120]
[333730913,1722420002163,-561.59,0.00043835,120]
[333730914,1722420002205,-10490.64,0.00043835,120]
[333730915,1722420002250,-2080.97,0.00043835,120]
[333730916,1722420002304,-500.0,0.00043835,120]
[333730917,1722420002346,-5567.22,0.00043835,120]
[333730918,1722420002385,-700.15,0.00043835,120]
[333730919,1722420002424,-4588.66,0.00043835,120]
[333730920,1722420002470,-500.0,0.00043835,120]
[333730921,1722420002510,-500.0,0.00043835,120]
[333730922,1722420002552,-500.0,0.00043835,120]
[333730923,1722420002591,-1340.27,0.00043835,120]
[333730924,1722420002629,-306.14270222,0.00043835,120]
[333730925,1722420002668,-500.0,0.00043835,120]
[333730926,1722420002706,-2546.81,0.00043835,120]
[333730927,1722420002745,-500.0,0.00043835,120]
[333730928,1722420002784,-3137.58,0.00043835,120]
[333730929,1722420002823,-1884.09,0.00043835,120]
[333730930,1722420002862,-500.0,0.00043835,120]
[333730931,1722420002902,-500.0,0.00043835,120]
[333730932,1722420002943,-837.41,0.00043835,120]
[333730933,1722420002984,-500.0,0.00043835,120]
[333730934,1722420003026,-9670.5,0.00043835,120]
[333730935,1722420003072,-1297.12,0.00043835,120]
[333730936,1722420003115,-500.0,0.00043835,120]
[333730937,1722420003157,-780.85,0.00043835,120]
[333730938,1722420003200,-500.0,0.00043835,120]
[333730939,1722420003245,-2785.61,0.00043835,120]
[333730940,1722420003288,-609.82,0.00043835,120]
[333730941,1722420003332,-2010.8,0.00043835,120]
[333730942,1722420003375,-3303.65,0.00043835,120]
[333730943,1722420003418,-500.0,0.00043835,120]
[333730944,1722420003467,-500.0,0.00043835,120]
[333730945,1722420003515,-5566.08,0.00043835,120]
[333730946,1722420003555,-500.0,0.00043835,120]
[333730947,1722420003596,-2375.28,0.00043835,120]
[333730948,1722420003638,-500.0,0.00043835,120]
[333730949,1722420003683,-564.64,0.00043835,120]
[333730950,1722420003726,-556.84,0.00043835,120]
[333730951,1722420003769,-1177.81,0.00043835,120]
[333730952,1722420003811,-1562.73,0.00043835,120]
[333730953,1722420003855,-500.0,0.00043835,120]
[333730954,1722420003904,-500.0,0.00043835,120]
[333730955,1722420003951,-500.0,0.00043835,120]
[333730956,1722420003997,-4036.96,0.00043835,120]
[333730957,1722420004040,-453.55002058,0.00043835,120]
[333730958,1722420004084,-500.0,0.00043835,120]
[333730959,1722420004129,-500.0,0.00043835,120]
[333730960,1722420004173,-558.66,0.00043835,120]
[333730961,1722420004218,-878.19,0.00043835,120]
[333730962,1722420004260,-586.35,0.00043835,120]
[333730963,1722420004304,-505.88130897,0.00043835,120]
[333730964,1722420004347,-500.0,0.00043835,120]
[333730965,1722420004603,-500.0,0.00043835,120]
[333730966,1722420004647,-500.0,0.00043835,120]
[333730967,1722420004694,-584.28,0.00043835,120]
[333730968,1722420004743,-500.0,0.00043835,120]
[333730969,1722420004789,-3867.91,0.00043835,120]
[333730970,1722420004835,-3283.51,0.00043835,120]
[333730971,1722420004881,-830.9,0.00043835,120]
[333730972,1722420004928,-844.71,0.00043835,120]
[333730973,1722420004974,-3997.98,0.00043835,120]
[333730974,1722420005021,-500.0,0.00043835,120]
[333730975,1722420005066,-500.0,0.00043835,120]
[333730976,1722420005112,-617.18,0.00043835,120]
[333730977,1722420005156,-500.0,0.00043835,120]
[333730978,1722420005202,-1450.88,0.00043835,120]
[333730979,1722420005247,-762.01,0.00043835,120]
[333730980,1722420005292,-762.01,0.00043835,120]
[333730981,1722420005336,-504.60397581,0.00043835,120]
[333730982,1722420005380,-1733.97,0.00043835,120]
[333730983,1722420005428,-762.01,0.00043835,120]
[333730984,1722420005476,-1106.16,0.00043835,120]
[333730985,1722420005522,-762.01,0.00043835,120]
[333730986,1722420005567,-762.01,0.00043835,120]
[333730987,1722420005615,-762.01,0.00043835,120]
[333730988,1722420005662,-762.01,0.00043835,120]
[333730989,1722420005708,-500.0,0.00043835,120]
[333730990,1722420005753,-4674.96,0.00043835,120]
[333730991,1722420005799,-762.01,0.00043835,120]
[333730992,1722420005843,-634.78,0.00043835,120]
[333730993,1722420005889,-762.01,0.00043835,120]
[333730994,1722420005934,-762.01,0.00043835,120]
[333730995,1722420005978,-6042.16,0.00043835,120]
[333730996,1722420006025,-762.01,0.00043835,120]
[333730997,1722420006069,-3157.25,0.00043835,120]
[333730998,1722420006116,-762.01,0.00043835,120]
[333730999,1722420006160,-1353.38,0.00043835,120]
[333731000,1722420006209,-762.01,0.00043835,120]
[333731001,1722420006256,-762.01,0.00043835,120]
[333731002,1722420006302,-762.01,0.00043835,120]
[333731003,1722420006349,-762.01,0.00043835,120]
[333731004,1722420006393,-705.84,0.00043835,120]
[333731005,1722420006441,-762.01,0.00043835,120]
[333731006,1722420006487,-500.0,0.00043835,120]
[333731007,1722420006533,-762.01,0.00043835,120]
[333731008,1722420006582,-762.01,0.00043835,120]
[333731009,1722420006629,-762.01,0.00043835,120]
[333731010,1722420006671,-500.0,0.00043835,120]
[333731011,1722420006715,-762.01,0.00043835,120]
[333731012,1722420006759,-500.0,0.00043835,120]
[333731013,1722420006805,-762.01,0.00043835,120]
[333731014,1722420006847,-499.9481,0.00043835,120]
[333731015,1722420006891,-1625.02,0.00043835,120]
[333731016,1722420006937,-762.01,0.00043835,120]
[333731017,1722420006981,-762.17801501,0.00043835,120]
[333731018,1722420007025,-2270.65,0.00043835,120]
[333731019,1722420007070,-1639.11,0.00043835,120]
[333731020,1722420007112,-500.0,0.00043835,120]
[333731021,1722420007157,-1084.57,0.00043835,120]
[333731022,1722420007201,-2240.42,0.00043835,120]
[333731023,1722420007245,-500.0,0.00043835,120]
[333731024,1722420007289,-3457.19,0.00043835,120]
[333731025,1722420007333,-3183.88,0.00043835,120]
[333731026,1722420007379,-2322.01,0.00043835,120]
[333731027,1722420007424,-500.0,0.00043835,120]
[333731028,1722420007473,-500.0,0.00043835,120]
[333731029,1722420007518,-500.0,0.00043835,120]
[333731030,1722420007561,-645.39,0.00043835,120]
[333731031,1722420007604,-500.0,0.00043835,120]
[333731032,1722420007654,-3451.58,0.00043835,120]
[333731033,1722420007703,-2104.29,0.00043835,120]
[333731034,1722420007746,-1812.0,0.00043835,120]
[333731035,1722420007789,-838.84,0.00043835,120]
[333731036,1722420007833,-1821.45,0.00043835,120]
[333731037,1722420007878,-3216.14,0.00043835,120]
[333731038,1722420007921,-528.78,0.00043835,120]
[333731039,1722420007966,-879.9,0.00043835,120]
[333731040,1722420008009,-2385.62,0.00043835,120]
[333731041,1722420008052,-919.45,0.00043835,120]
[333731042,1722420008096,-629.59,0.00043835,120]
[333731043,1722420008137,-1346.45,0.00043835,120]
[333731044,1722420008181,-313.65187514,0.00043835,120]
[333731045,1722420008226,-10494.93,0.00043835,120]
[333731046,1722420008271,-3055.47,0.00043835,120]
[333731047,1722420008315,-1473.12,0.00043835,120]
[333731048,1722420008357,-500.0,0.00043835,120]
[333731049,1722420008402,-1561.81,0.00043835,120]
[333731050,1722420008446,-500.0,0.00043835,120]
[333731051,1722420008491,-500.0,0.00043835,120]
[333731052,1722420008535,-500.0,0.00043835,120]
[333731053,1722420008578,-509.73383788,0.00043835,120]
[333731054,1722420008622,-1388.26,0.00043835,120]
[333731055,1722420008666,-3814.16,0.00043835,120]
[333731056,1722420008711,-500.0,0.00043835,120]
[333731057,1722420008755,-992.65,0.00043835,120]
[333731058,1722420008799,-500.0,0.00043835,120]
[333731059,1722420008846,-537.38,0.00043835,120]
[333731060,1722420008895,-1958.59,0.00043835,120]
[333731061,1722420008940,-1708.01,0.00043835,120]
[333731062,1722420008984,-3171.3,0.00043835,120]
[333731063,1722420009030,-7000.72,0.00043835,120]
[333731064,1722420009073,-500.0,0.00043835,120]
[333731065,1722420009116,-500.0,0.00043835,120]
[333731066,1722420009158,-2052.73,0.00043835,120]
[333731067,1722420009199,-2712.34,0.00043835,120]
[333731068,1722420009445,-2853.39,0.00043835,120]
[333731069,1722420009486,-500.0,0.00043835,120]
[333731070,1722420009526,-500.0,0.00043835,120]
[333731071,1722420009566,-790.58,0.00043835,120]
[333731072,1722420009606,-3090.28,0.00043835,120]
[333731073,1722420009647,-500.0,0.00043835,120]
[333731074,1722420009688,-3096.77,0.00043835,120]
[333731075,1722420009726,-500.0,0.00043835,120]
[333731076,1722420009768,-8055.08,0.00043835,120]
[333731077,1722420009809,-500.0,0.00043835,120]
[333731078,1722420009850,-2531.35,0.00043835,120]
[333731079,1722420009895,-2298.29,0.00043835,120]
[333731080,1722420009937,-500.0,0.00043835,120]
[333731081,1722420009981,-4124.7,0.00043835,120]
[333731082,1722420010023,-2533.24,0.00043835,120]
[333731083,1722420010064,-2446.11,0.00043835,120]
[333731084,1722420010105,-500.0,0.00043835,120]
[333731085,1722420010146,-500.0,0.00043835,120]
[333731086,1722420010187,-633.66,0.00043835,120]
[333731087,1722420010228,-500.0,0.00043835,120]
[333731088,1722420010270,-3254.92,0.00043835,120]
[333731089,1722420010311,-779.71,0.00043835,120]
[333731090,1722420010355,-500.0,0.00043835,120]
[333731091,1722420010398,-1469.31,0.00043835,120]
[333731092,1722420010442,-500.0,0.00043835,120]
[333731093,1722420010487,-667.54,0.00043835,120]
[333731094,1722420010529,-500.0,0.00043835,120]
[333731095,1722420010569,-1892.54,0.00043835,120]
[333731096,1722420010610,-1018.45,0.00043835,120]
[333731097,1722420010652,-2188.59,0.00043835,120]
[333731098,1722420010693,-500.0,0.00043835,120]
[333731099,1722420010734,-3095.54,0.00043835,120]
[333731100,1722420010775,-4724.8,0.00043835,120]
[333731101,1722420010817,-4991.47,0.00043835,120]
[333731102,1722420010857,-500.0,0.00043835,120]
[333731103,1722420010899,-3505.3,0.00043835,120]
[333731104,1722420010941,-500.0,0.00043835,120]
[333731105,1722420010982,-500.0,0.00043835,120]
[333731106,1722420011022,-500.0,0.00043835,120]
[333731107,1722420011060,-500.0,0.00043835,120]
[333731108,1722420011101,-500.0,0.00043835,120]
[333731109,1722420011140,-1198.71,0.00043835,120]
[333731110,1722420011181,-1845.93,0.00043835,120]
[333731111,1722420011220,-556.82,0.00043835,120]
[333731112,1722420011262,-500.0,0.00043835,120]
[333731113,1722420011301,-933.6,0.00043835,120]
[333731114,1722420011343,-500.0,0.00043835,120]
[333731115,1722420011382,-500.0,0.00043835,120]
[333731116,1722420011420,-5196.19,0.00043835,120]
[333731117,1722420011468,-500.0,0.00043835,120]
[333731118,1722420011511,-500.0,0.00043835,120]
[333731119,1722420011554,-5123.79,0.00043835,120]
[333731120,1722420011595,-6312.23,0.00043835,120]
[333731121,1722420011634,-500.0,0.00043835,120]
[333731122,1722420011672,-500.0,0.00043835,120]
[333731123,1722420011711,-1069.86,0.00043835,120]
[333731124,1722420011750,-683.37,0.00043835,120]
[333731125,1722420011788,-545.84111186,0.00043835,120]
[333731126,1722420011826,-500.0,0.00043835,120]
[333731127,1722420011868,-508.37,0.00043835,120]
[333731128,1722420011908,-673.59,0.00043835,120]
[333731129,1722420011950,-500.0,0.00043835,120]
[333731130,1722420011992,-500.0,0.00043835,120]
[333731131,1722420012032,-500.0,0.00043835,120]
[333731132,1722420012073,-543.8,0.00043835,120]
[333731133,1722420012116,-500.0,0.00043835,120]
[333731134,1722420012156,-359.02,0.00043835,120]
[333731135,1722420012195,-500.0,0.00043835,120]
[333731136,1722420012234,-500.0,0.00043835,120]
[333731137,1722420012274,-500.55950003,0.00043835,120]
[333731138,1722420012313,-500.0,0.00043835,120]
[333731139,1722420012352,-1737.81,0.00043835,120]
[333731140,1722420012391,-500.0,0.00043835,120]
[333731141,1722420012433,-500.0,0.00043835,120]
[333731142,1722420012475,-500.0,0.00043835,120]
[333731143,1722420012515,-500.0,0.00043835,120]
[333731144,1722420012556,-500.0,0.00043835,120]
[333731145,1722420012598,-500.0,0.00043835,120]
[333731146,1722420012637,-1818.59,0.00043835,120]
[333731147,1722420012678,-500.0,0.00043835,120]
[333731148,1722420012718,-500.0,0.00043835,120]
[333731149,1722420012759,-500.0,0.00043835,120]
[333731150,1722420012798,-1157.04,0.00043835,120]
[333731151,1722420012839,-500.0,0.00043835,120]
[333731152,1722420012882,-500.0,0.00043835,120]
[333731153,1722420012922,-500.0,0.00043835,120]
[333731154,1722420012963,-500.0,0.00043835,120]
[333731155,1722420013002,-500.0,0.00043835,120]
[333731156,1722420013041,-500.0,0.00043835,120]
[333731157,1722420013081,-504.55702903,0.00043835,120]
[333731158,1722420013121,-4261.38,0.00043835,120]
[333731159,1722420013163,-310.05721112,0.00043835,120]
[333731160,1722420013204,-4065.31,0.00043835,120]
[333731161,1722420013246,-3490.57,0.00043835,120]
[333731162,1722420013285,-3047.04,0.00043835,120]
[333731163,1722420013326,-2527.06,0.00043835,120]
[333731164,1722420013367,-500.0,0.00043835,120]
[333731165,1722420013408,-500.0,0.00043835,120]
[333731166,1722420013448,-503.36181287,0.00043835,120]
[333731167,1722420013495,-500.0,0.00043835,120]
[333731168,1722420013539,-500.0,0.00043835,120]
[333731169,1722420013578,-500.0,0.00043835,120]
[333731170,1722420013619,-500.0,0.00043835,120]
[333731171,1722420013659,-500.0,0.00043835,120]
[333731172,1722420013908,-555.23363959,0.00043835,120]
[333731173,1722420013950,-2594.45,0.00043835,120]
[333731174,1722420013990,-500.0,0.00043835,120]
[333731175,1722420014030,-500.0,0.00043835,120]
[333731176,1722420014070,-500.0,0.00043835,120]
[333731177,1722420014110,-500.0,0.00043835,120]
[333731178,1722420014151,-500.0,0.00043835,120]
[333731179,1722420014191,-348.36797526,0.00043835,120]
[333731180,1722420014232,-500.0,0.00043835,120]
[333731181,1722420014275,-500.0,0.00043835,120]
[333731182,1722420014316,-5510.27,0.00043835,120]
[333731183,1722420014356,-500.0,0.00043835,120]
[333731184,1722420014397,-1901.33,0.00043835,120]
[333731185,1722420014440,-500.0,0.00043835,120]
[333731186,1722420014485,-12863.77,0.00043835,120]
[333731187,1722420014529,-3307.05,0.00043835,120]
[333731188,1722420014574,-500.0,0.00043835,120]
[333731189,1722420014619,-500.0,0.00043835,120]
[333731190,1722420014660,-500.0,0.00043835,120]
[333731191,1722420014703,-708.53,0.00043835,120]
[333731192,1722420014747,-500.0,0.00043835,120]
[333731193,1722420014789,-4501.42,0.00043835,120]
[333731194,1722420014831,-500.0,0.00043835,120]
[333731195,1722420014875,-3057.09,0.00043835,120]
[333731196,1722420014918,-500.0,0.00043835,120]
[333731197,1722420014963,-4421.48,0.00043835,120]
[333731198,1722420015007,-500.0,0.00043835,120]
[333731199,1722420015048,-500.0,0.00043835,120]
[333731200,1722420015088,-500.0,0.00043835,120]
[333731201,1722420015128,-500.0,0.00043835,120]
[333731202,1722420015171,-3815.59,0.00043835,120]
[333731203,1722420015210,-500.0,0.00043835,120]
[333731204,1722420015250,-500.0,0.00043835,120]
[333731205,1722420015290,-5057.91,0.00043835,120]
[333731206,1722420015332,-500.0,0.00043835,120]
[333731207,1722420015373,-199999.9463146,0.0004388,30]
[333731208,1722420015414,-150.0,0.00043888,120]
[333731209,1722420015458,-500.0,0.0004389,120]
[333731210,1722420015498,-500.0,0.00043904,30]
[333731211,1722420015543,-700.0,0.00043904,30]
[333731212,1722420015583,-2900.0,0.00043904,30]
[333731213,1722420015624,-1100.0,0.00043904,30]
[333731214,1722420015663,-2500.0,0.00043904,30]
[333731215,1722420015702,-500.0,0.00043945,120]
[333731216,1722420015742,-7673.57,0.00043962,30]
[333731217,1722420015780,-7673.57,0.00043962,30]
[333731218,1722420015819,-1999.0,0.00043972,120]
[333731219,1722420015857,-2990.96175763,0.00043972,120]
[333731220,1722420015896,-151.0,0.00043973,120]
[333731221,1722420015935,-500.0,0.00043999,120]
[333731222,1722420015976,-50000.0,0.00044,34]
[333731223,1722420016018,-50000.0,0.00044,44]
[333731224,1722420016057,-2940.65558637,0.00044,120]
[333731225,1722420016096,-298.90354788,0.00044,40]
[333731226,1722420016135,-2000000.0,0.00044,90]
[333731227,1722420016174,-2000000.0,0.00044,120]
[333731228,1722420016212,-2233.0,0.00044,120]
[333731229,1722420016251,-1100.0,0.00044,120]
[333731230,1722420016288,-1600.0,0.00044,120]
[333731231,1722420016327,-150.0,0.00044,120]
[333731232,1722420016367,-24270.09629679,0.00044,120]
[333731233,1722420016407,-628.310868,0.00044,57]
[333731234,1722420016448,-151.0,0.00044027,120]
[333731235,1722420016488,-500.0,0.00044054,120]
[333731236,1722420016530,-216.77156,0.00044088,30]
[333731237,1722420016570,-149473.6130305,0.000441,120]
[333731238,1722420034382,50000.0,0.00031522,33]
[333731239,1722420173757,50000.0,0.00031552,34]
[333731240,1722420394993,670.20564849,0.00031645,120]
[333731242,1722420438427,346.23,0.0001337,30]
[333731243,1722420446056,160.0,0.00031645,30]
[333731245,1722420463137,1000.0,0.00031645,60]
[333731248,1722420486626,1355.0,0.00031645,120]
[333731249,1722420488917,259.1453,0.00031645,30]
[333731253,1722420495558,505.58,0.00031645,30]
[333731256,1722420505272,1000.0,0.00031451,30]
[333731257,1722420505833,1000.0,0.00031451,30]
[333731258,1722420506447,1000.0,0.00031451,30]
[333731259,1722420506984,1000.0,0.00031451,30]
[333731260,1722420507568,1000.0,0.00031451,30]
[333731261,1722420508124,1000.0,0.00031451,30]
[333731262,1722420508687,1000.0,0.00031451,30]
[333731263,1722420509284,1000.0,0.00031451,30]
[333731264,1722420509848,1000.0,0.00031451,30]
[333731265,1722420510401,1000.0,0.00031451,30]
[333731266,1722420511188,1000.0,0.00031451,30]
[333731267,1722420512620,1000.0,0.00031451,30]
[333731268,1722420513562,1000.0,0.00031451,30]
[333731269,1722420514147,1000.0,0.00031451,30]
[333731270,1722420515394,1000.0,0.00031451,30]
[333731271,1722420516033,1000.0,0.00031451,30]
[333731273,1722420516721,1000.0,0.00031451,30]
[333731274,1722420517187,1000.0,0.00031451,30]
[333731275,1722420517272,1000.0,0.00031451,30]
[333731276,1722420517552,1000.0,0.00031451,30]
[333731277,1722420518089,1000.0,0.00031451,30]
[333731278,1722420518162,1000.0,0.00031451,30]
[333731279,1722420518421,1000.0,0.00031451,30]
[333731280,1722420518901,1000.0,0.00031451,30]
[333731281,1722420519043,1000.0,0.00031451,30]
[333731282,1722420519452,1000.0,0.00031451,30]
[333731283,1722420519613,1000.0,0.00031451,30]
[333731284,1722420519842,1000.0,0.00031451,30]
[333731285,1722420520275,1000.0,0.00031451,30]
[333731286,1722420520334,1000.0,0.00031451,30]
[333731287,1722420520765,1000.0,0.00031451,30]
[333731288,1722420521395,1000.0,0.00031451,30]
[333731289,1722420521558,1000.0,0.00031451,30]
[333731290,1722420521882,1000.0,0.00031451,30]
[333731291,1722420522151,1000.0,0.00031451,30]
[333731292,1722420522334,1000.0,0.00031451,30]
[333731293,1722420523542,1000.0,0.00031451,30]
[333731294,1722420523598,1000.0,0.00031451,30]
[333731295,1722420523725,1000.0,0.00031451,30]
[333731296,1722420524043,1000.0,0.00031451,30]
[333731297,1722420524190,1000.0,0.00031451,30]
[333731298,1722420524619,1000.0,0.00031451,30]
[333731299,1722420524661,1000.0,0.00031451,30]
[333731300,1722420525048,1000.0,0.00031451,30]
[333731301,1722420525137,1000.0,0.00031451,30]
[333731302,1722420525398,1000.0,0.00031451,30]
[333731303,1722420525716,287.64105914,0.00031451,30]
[333731304,1722420525759,1000.0,0.00031451,30]
[333731305,1722420526164,1000.0,0.00031451,30]
[333731306,1722420526821,1000.0,0.00031451,30]
[333731307,1722420527265,1000.0,0.00031451,30]
[333731308,1722420528657,1000.0,0.00031451,30]
[333731309,1722420529072,1676.467064,0.00031451,30]
[333731311,1722420548867,1000.0,0.00031451,30]
[333731312,1722420553916,1000.0,0.00031451,60]
[333731313,1722420568235,759.16743069,0.00031451,120]
[333731319,1722420592410,50000.0,0.00031451,30]
[333731320,1722420596326,50000.0,0.00031451,31]
[333731321,1722420601888,799.93521002,0.00031451,30]
[333731322,1722420602952,50000.0,0.00031451,32]
[333731323,1722420606930,1000.0,0.00031451,30]
[333731335,1722420608042,50000.0,0.00031451,33]
[333731336,1722420611765,50000.0,0.00031451,34]
[333731337,1722420611956,1000.0,0.00031451,60]